bitfinex/quotes_SOLUSD_20250522
["timestamp","ask_amount","ask_price","bid_price","bid_amount"]
[1747899913483,41.61783849,178.43,178.37,0.14216157]
[1747899913880,22.002303,178.41,178.37,0.14216157]
[1747899914183,22.002303,178.41,178.34,26.14216157]
[1747899914385,22.002303,178.4,178.34,26.14216157]
[1747899914588,22.002303,178.41,178.34,26.14216157]
[1747899915018,22.002303,178.4,178.34,0.14216157]
[1747899915684,5.60569538,178.39,178.34,0.14216157]
[1747899916893,22.002303,178.38,178.3,26.14216157]
[1747899917098,22.002303,178.37,178.3,83.14216157]
[1747899917290,22.002303,178.37,178.3,109.14216157]
[1747899917799,5.60663825,178.36,178.3,109.14216157]
[1747899919804,27.95837714,178.39,178.3,109.14216157]
[1747899921001,19.54951984,178.4,178.34,0.14216157]
[1747899921198,13.94413868,178.38,178.34,0.14216157]
[1747899921582,13.94413868,178.38,178.32,0.14216157]
[1747899921795,5.60632393,178.37,178.32,0.14216157]
[1747899922416,5.60506698,178.41,178.35,26.0]
[1747899922702,5.60506698,178.41,178.36,0.14216157]
[1747899924001,14.01217222,178.42,178.36,0.14216157]
[1747899924394,13.94413868,178.41,178.36,0.14216157]
[1747899925102,13.94413868,178.4,178.36,0.14216157]
[1747899925318,13.94413868,178.4,178.28,9.10504149]
[1747899925319,13.94413868,178.37,178.28,6.3578]
[1747899925526,13.94413868,178.34,178.29,0.14216157]
[1747899926011,5.60821042,178.31,178.26,0.14216157]
[1747899926176,19.62873647,178.31,178.28,0.14216157]
[1747899927097,19.62873647,178.31,178.26,0.14216157]
[1747899927612,19.62873647,178.31,178.25,1.7098]
[1747899927903,19.62873647,178.31,178.28,0.14216157]
[1747899928505,41.61724228,178.31,178.28,0.14216157]
[1747899928705,19.62873647,178.31,178.25,0.14216157]
[1747899928885,19.62873647,178.31,178.28,0.14216157]
[1747899929715,21.98850581,178.41,178.3,0.14216157]
[1747899929881,23.63510581,178.42,178.34,0.14216157]
[1747899930208,21.98850581,178.4,178.34,0.14216157]
[1747899930813,19.61773443,178.41,178.34,0.14216157]
[1747899930990,21.98850581,178.37,178.32,0.14216157]
[1747899931490,21.98850581,178.37,178.3,0.14216157]
[1747899931696,47.64306933,178.41,178.3,0.14216157]
[1747899931913,21.98850581,178.37,178.3,0.14216157]
[1747899932515,19.62323389,178.36,178.3,0.14216157]
[1747899934018,21.98850581,178.36,178.3,0.14216157]
[1747899934812,21.98850581,178.35,178.3,0.14216157]
[1747899935118,21.98850581,178.36,178.29,0.14216157]
[1747899936217,21.98850581,178.36,178.26,0.14216157]
[1747899937108,19.62433417,178.35,178.26,0.14216157]
[1747899937694,41.61283998,178.35,178.26,0.14216157]
[1747899938603,21.98850581,178.34,178.26,0.14216157]
[1747899938803,21.98850581,178.33,178.26,0.14216157]
[1747899939004,5.60789591,178.32,178.26,0.14216157]
[1747899939420,19.6276357,178.32,178.26,0.14216157]
[1747899939914,5.60789591,178.32,178.28,0.14216157]
[1747899940416,21.98850581,178.35,178.28,0.14216157]
[1747899940806,21.98850581,178.35,178.27,0.14216157]
[1747899941006,28.02690582,178.4,178.27,5.75138203]
[1747899941208,21.98850581,178.38,178.31,0.14216157]
[1747899942403,21.98850581,178.37,178.31,0.14216157]
[1747899944532,5.60663825,178.36,178.31,0.14216157]
[1747899945507,19.62323389,178.36,178.31,0.14216157]
[1747899947002,5.60663825,178.36,178.31,0.14216157]
[1747899947199,5.60600964,178.38,178.31,88.75034487]
[1747899948231,5.60600964,178.38,178.31,83.14216157]
[1747899948604,5.60600964,178.38,178.35,0.14216157]
[1747899949133,19.61993384,178.39,178.33,0.14216157]
[1747899949900,5.60569538,178.39,178.33,0.14216157]
[1747899950910,21.98850581,178.38,178.3,26.14216157]
[1747899951218,19.61993384,178.39,178.33,0.14216157]
[1747899952198,5.60569538,178.39,178.33,0.14216157]
[1747899953423,5.60538116,178.4,178.33,0.14216157]
[1747899953805,5.60538116,178.4,178.33,5.74970202]
[1747899954802,19.61706196,178.42,178.33,0.14216157]
[1747899955124,21.98850581,178.41,178.33,83.14216157]
[1747899955323,21.98850581,178.4,178.33,83.14216157]
[1747899957435,19.61993384,178.39,178.33,83.14216157]
[1747899957744,41.60843965,178.39,178.33,83.14216157]
[1747899958034,41.60843965,178.39,178.33,0.14216157]
[1747899959617,33.56379952,178.39,178.33,0.14216157]
[1747899960447,5.60569538,178.39,178.33,0.14216157]
[1747899960820,5.60569538,178.39,178.32,26.0]
[1747899961020,5.60569538,178.39,178.33,0.14216157]
[1747899961520,5.60506698,178.41,178.33,0.14216157]
[1747899961740,5.60506698,178.41,178.37,0.14216157]
[1747899962443,5.60506698,178.41,178.34,0.14216157]
[1747899963443,5.60443871,178.43,178.38,0.14216157]
[1747899964134,19.61553549,178.43,178.37,0.14216157]
[1747899964318,33.55940117,178.43,178.37,0.14216157]
[1747899964724,19.61553549,178.43,178.36,0.14216157]
[1747899967021,5.60443871,178.43,178.36,0.14216157]
[1747899967218,5.6031826,178.47,178.4,0.14216157]
[1747899967648,5.6031826,178.47,178.42,0.14216157]
[1747899968345,5.60286866,178.48,178.42,0.14216157]
[1747899968641,5.60286866,178.48,178.44,0.14216157]
[1747899969536,5.60192706,178.51,178.44,0.14216157]
[1747899970345,20.06936568,178.53,178.49,0.14216157]
[1747899970346,5.6012995,178.53,178.49,0.14216157]
[1747899970843,12.98229528,178.54,178.49,0.14216157]
[1747899971342,7.38130533,178.54,178.49,0.14216157]
[1747899972115,12.98237486,178.54,178.49,0.14216157]
[1747899972535,7.38130533,178.54,178.49,0.14216157]
[1747899973138,1.634,178.59,178.49,0.14216157]
[1747899973139,5.60039764,178.56,178.53,0.14216157]
[1747899974240,5.59973121,178.58,178.53,0.14216157]
[1747899974440,19.59283154,178.64,178.54,0.14216157]
[1747899974643,33.53669722,178.64,178.54,0.14216157]
[1747899974940,13.94386568,178.63,178.54,0.14216157]
[1747899975141,5.59785042,178.64,178.55,27.91956157]
[1747899975858,21.90866076,178.61,178.55,26.14216157]
[1747899976023,5.59785042,178.64,178.55,26.14216157]
[1747899976024,21.90866076,178.6,178.55,26.14216157]
[1747899976215,21.90866076,178.6,178.55,0.14216157]
[1747899976422,5.59941766,178.59,178.55,0.14216157]
[1747899977546,5.5969105,178.67,178.6,0.14216157]
[1747899978047,27.50557126,178.67,178.6,0.14216157]
[1747899978547,41.49784752,178.67,178.6,0.14216157]
[1747899979243,19.58918676,178.67,178.6,0.14216157]
[1747899979626,19.58918676,178.67,178.62,0.14216157]
[1747899980459,5.5969105,178.67,178.62,0.14216157]
[1747899980624,21.90866076,178.69,178.62,0.14216157]
[1747899980826,21.90866076,178.68,178.62,0.14216157]
[1747899981125,21.90866076,178.67,178.62,0.14216157]
[1747899981332,21.90866076,178.67,178.6,0.14216157]
[1747899981545,21.90866076,178.68,178.6,0.14216157]
[1747899982045,19.58599375,178.7,178.6,0.14216157]
[1747899982364,41.49465451,178.7,178.6,0.14216157]
[1747899982919,19.58599375,178.7,178.63,26.0]
[1747899983223,21.90866076,178.69,178.64,0.14216157]
[1747899983427,21.90866076,178.67,178.64,0.14216157]
[1747899983752,21.90866076,178.67,178.56,40.1655]
[1747899983753,5.5959709,178.7,178.6,0.14216157]
[1747899984047,5.5959709,178.7,178.62,0.14216157]
[1747899984245,5.5959709,178.7,178.61,1.7593]
[1747899984246,5.5959709,178.7,178.64,0.14216157]
[1747899984654,5.59503161,178.73,178.64,0.14216157]
[1747899984828,5.59503161,178.73,178.67,0.14216157]
[1747899985030,21.90866076,178.72,178.67,0.14216157]
[1747899985245,21.90866076,178.71,178.64,0.14216157]
[1747899985641,19.58261063,178.73,178.64,0.14216157]
[1747899985846,41.49127139,178.73,178.64,0.14216157]
[1747899986152,19.58261063,178.73,178.64,0.14216157]
[1747899986450,19.58261063,178.73,178.67,0.14216157]
[1747899987628,19.58261063,178.73,178.63,33.6]
[1747899987834,21.90866076,178.7,178.64,0.14216157]
[1747899988129,21.90866076,178.69,178.64,0.14216157]
[1747899988328,21.90866076,178.68,178.57,1.7322]
[1747899988657,5.59910414,178.6,178.58,0.14216157]
[1747899988830,5.59910414,178.6,178.51,6.6007]
[1747899989035,19.59686449,178.6,178.52,26.0]
[1747899989351,21.90866076,178.58,178.51,6.6007]
[1747899989649,21.90866076,178.57,178.5,0.14216157]
[1747899989957,21.90866076,178.57,178.5,26.14216157]
[1747899990133,21.90866076,178.55,178.5,0.14216157]
[1747899990333,8.2866,178.59,178.49,0.14216157]
[1747899990729,19.59905924,178.58,178.46,0.14216157]
[1747899990929,21.90866076,178.53,178.46,0.14216157]
[1747899991130,21.90866076,178.52,178.46,0.14216157]
[1747899991334,39.92,178.57,178.43,39.92]
[1747899991335,21.90866076,178.5,178.43,39.92]
[1747899991552,21.90866076,178.5,178.4,33.58]
[1747899991752,21.90866076,178.49,178.41,0.14216157]
[1747899991950,21.90866076,178.48,178.41,0.14216157]
[1747899992152,21.90866076,178.48,178.4,26.14216157]
[1747899992458,21.90866076,178.46,178.4,0.14216157]
[1747899992645,5.60381059,178.45,178.38,0.14216157]
[1747899993249,5.60381059,178.45,178.38,26.14216157]
[1747899993549,5.60381059,178.45,178.35,0.14216157]
[1747899993859,5.60381059,178.45,178.38,0.14216157]
[1747899994058,19.61333706,178.45,178.35,0.14216157]
[1747899994437,19.61333706,178.45,178.38,0.14216157]
[1747899994638,5.60381059,178.45,178.38,0.14216157]
[1747899994949,5.60349658,178.46,178.38,26.14216157]
[1747899995272,19.61223803,178.46,178.38,26.14216157]
[1747899997168,21.90866076,178.45,178.38,0.14216157]
[1747899997458,21.90866076,178.44,178.38,0.14216157]
[1747899997958,21.90866076,178.45,178.38,0.14216157]
[1747899998457,35.91740221,178.46,178.38,0.14216157]
[1747899998645,14.00874145,178.46,178.38,0.14216157]
[1747899999236,19.61223803,178.46,178.38,0.14216157]
[1747899999462,21.90866076,178.45,178.38,0.14216157]
[1747899999959,21.90866076,178.44,178.38,0.14216157]
[1747900000336,19.61223803,178.46,178.4,0.14216157]
[1747900000948,21.90866076,178.45,178.37,26.0]
[1747900001151,21.90866076,178.45,178.38,0.14216157]
[1747900001352,21.90866076,178.44,178.38,0.14216157]
[1747900001857,21.90866076,178.43,178.38,0.14216157]
[1747900002162,21.90866076,178.43,178.37,26.0]
[1747900002163,21.90866076,178.43,178.35,0.14216157]
[1747900002467,21.90866076,178.4,178.35,0.14216157]
[1747900002661,21.90866076,178.38,178.35,0.14216157]
[1747900002960,21.90866076,178.38,178.3,6.5634]
[1747900003161,21.90866076,178.38,178.31,0.14216157]
[1747900003363,5.60632393,178.37,178.31,0.14216157]
[1747900003573,5.60632393,178.37,178.34,0.14216157]
[1747900003943,21.90866076,178.36,178.26,46.0939]
[1747900004141,21.90866076,178.35,178.27,0.14216157]
[1747900004557,21.90866076,178.35,178.3,0.14216157]
[1747900005353,5.60726701,178.34,178.3,0.14216157]
[1747900007353,5.60695262,178.35,178.3,0.14216157]
[1747900009571,19.62323389,178.36,178.3,0.14216157]
[1747900010153,41.53189465,178.36,178.3,0.14216157]
[1747900011559,21.90866076,178.37,178.3,0.14216157]
[1747900011865,21.90866076,178.33,178.26,0.14216157]
[1747900012068,21.90866076,178.31,178.26,0.14216157]
[1747900012267,21.90866076,178.32,178.26,0.14216157]
[1747900012639,21.90866076,178.32,178.23,0.14216157]
[1747900012844,21.90866076,178.29,178.23,0.14216157]
[1747900013451,21.90866076,178.29,178.22,0.17214095]
[1747900013645,5.60915413,178.28,178.22,0.17214095]
[1747900014064,14.0150241,178.38,178.26,0.14216157]
[1747900014276,35.92368486,178.38,178.28,0.14216157]
[1747900014444,21.90866076,178.37,178.28,0.14216157]
[1747900015472,5.60695262,178.35,178.28,0.14216157]
[1747900016562,19.62433417,178.35,178.28,0.14216157]
[1747900018182,21.90866076,178.32,178.22,1.90387938]
[1747900018371,21.90866076,178.31,178.22,1.90387938]
[1747900018579,21.90866076,178.31,178.24,0.14216157]
[1747900019078,21.90866076,178.31,178.23,0.14216157]
[1747900019470,21.90866076,178.31,178.23,26.14216157]
[1747900019780,21.90866076,178.31,178.23,0.14216157]
[1747900019781,5.60852495,178.3,178.23,0.14216157]
[1747900021262,19.62983734,178.3,178.23,0.14216157]
[1747900021462,19.62983734,178.3,178.25,0.14216157]
[1747900021659,5.60852495,178.3,178.25,0.14216157]
[1747900022072,5.60852495,178.3,178.27,0.14216157]
[1747900022665,5.60852495,178.3,178.26,0.14216157]
[1747900023662,19.62587817,178.34,178.26,0.14216157]
[1747900023863,19.62587817,178.34,178.27,0.14216157]
[1747900023864,21.90866076,178.33,178.27,0.14216157]
[1747900024496,41.53453893,178.34,178.24,0.14216157]
[1747900025196,19.62587817,178.34,178.24,0.14216157]
[1747900025382,41.53453893,178.34,178.24,0.14216157]
[1747900025583,41.53453893,178.34,178.28,0.14216157]
[1747900025788,5.60726701,178.34,178.28,0.14216157]
[1747900026874,19.62543455,178.34,178.28,0.14216157]
[1747900027778,5.60726701,178.34,178.28,0.14216157]
[1747900027973,5.60726701,178.34,178.28,26.14216157]
[1747900029887,19.62543455,178.34,178.28,26.14216157]
[1747900030081,41.53409531,178.34,178.26,0.14216157]
[1747900030289,41.53409531,178.34,178.26,26.14216157]
[1747900030801,21.90866076,178.33,178.26,26.14216157]
[1747900030994,21.90866076,178.33,178.28,0.14216157]
[1747900031707,5.60789591,178.32,178.28,0.14216157]
[1747900032394,5.60789591,178.32,178.26,0.14216157]
[1747900033002,5.60789591,178.32,178.27,26.0]
[1747900033185,5.60789591,178.32,178.28,0.14216157]
[1747900034016,5.60789591,178.32,178.26,0.14216157]
[1747900034803,27.51529901,178.36,178.26,0.14216157]
[1747900034999,21.90866076,178.3,178.23,0.14216157]
[1747900035201,21.90866076,178.27,178.23,0.14216157]
[1747900035394,21.90866076,178.26,178.23,0.14216157]
[1747900035595,21.90866076,178.26,178.22,0.02997938]
[1747900035898,5.61009817,178.25,178.22,0.02997938]
[1747900037412,28.04434699,178.29,178.22,0.02997938]
[1747900037619,21.90866076,178.27,178.22,0.02997938]
[1747900038103,19.62983734,178.3,178.22,0.02997938]
[1747900038104,21.90866076,178.26,178.22,0.02997938]
[1747900039094,21.90866076,178.25,178.22,0.02997938]
[1747900039307,21.90866076,178.24,178.22,0.02997938]
[1747900039502,21.90866076,178.23,178.22,0.02997938]
[1747900041615,27.51938847,178.23,178.22,0.02997938]
[1747900042018,29.28298847,178.23,178.22,0.02997938]
[1747900044698,47.93263733,178.23,178.22,0.02997938]
[1747900045433,18.64964886,178.19,178.06,0.14216157]
[1747900045594,21.90866076,178.13,178.06,0.14216157]
[1747900045794,18.64964886,178.19,178.06,26.14216157]
[1747900046096,21.90866076,178.17,178.06,26.14216157]
[1747900046296,21.90866076,178.16,178.06,26.14216157]
[1747900046501,21.90866076,178.15,178.06,26.14216157]
[1747900047119,5.61356236,178.14,178.06,26.14216157]
[1747900047598,19.64746827,178.14,178.06,26.14216157]
[1747900049607,19.64746827,178.14,177.98,0.14216157]
[1747900049608,21.90866076,178.12,177.98,0.14216157]
[1747900049806,21.90866076,178.12,177.98,59.80216157]
[1747900050008,23.71116076,178.13,178.02,0.14216157]
[1747900050211,1.8025,178.13,178.02,0.14216157]
[1747900050409,47.69922903,178.14,178.02,0.14216157]
[1747900051224,19.64746827,178.14,178.06,0.14216157]
[1747900051412,19.64746827,178.14,178.06,1.92296157]
[1747900052724,14.03390591,178.14,178.06,1.92296157]
[1747900053324,5.61324726,178.15,178.1,0.14216157]
[1747900053628,19.64636541,178.15,178.1,0.14216157]
[1747900054827,14.03311815,178.15,178.1,0.14216157]
[1747900055831,14.03311815,178.15,178.07,26.14216157]
[1747900056329,5.61293219,178.16,178.08,0.14216157]
[1747900056928,14.03233048,178.16,178.08,0.14216157]
[1747900058235,27.52127792,178.17,178.12,0.14216157]
[1747900058236,5.61261716,178.17,178.12,0.14216157]
[1747900058616,19.64416006,178.17,178.12,0.14216157]
[1747900058819,19.64416006,178.17,178.08,26.14216157]
[1747900060433,19.64416006,178.17,178.08,31.7575114]
[1747900061031,14.0315429,178.17,178.08,31.7575114]
[1747900061333,5.61230216,178.18,178.08,31.7575114]
[1747900061924,5.61230216,178.18,178.08,45.79614572]
[1747900063239,19.64134573,178.2,178.08,45.79614572]
[1747900063937,19.64134573,178.2,178.18,0.14216157]
[1747900064451,5.61167227,178.2,178.18,0.14216157]
[1747900064743,5.61167227,178.2,178.19,14.11330617]
[1747900065846,5.61104253,178.22,178.2,0.14216157]
[1747900067141,5.61104253,178.22,178.21,0.14216157]
[1747900067840,30.01144501,178.23,178.21,13.9711446]
[1747900068046,30.01144501,178.23,178.22,0.14216157]
[1747900068843,44.03826428,178.23,178.14,1.7382]
[1747900069046,44.03826428,178.23,178.21,0.14216157]
[1747900072252,44.03826428,178.23,178.2,0.14216157]
[1747900072548,58.00940888,178.23,178.2,0.14216157]
[1747900072753,13.9711446,178.22,178.18,0.14216157]
[1747900073850,13.9711446,178.21,178.15,0.14216157]
[1747900074033,13.9711446,178.21,178.16,13.9711446]
[1747900074750,19.64085296,178.2,178.16,13.9711446]
[1747900075255,19.64085296,178.2,178.18,0.14216157]
[1747900076352,14.02918069,178.2,178.16,13.9711446]
[1747900076733,14.02918069,178.2,178.17,0.14216157]
[1747900080350,14.02918069,178.2,178.18,0.14216157]
[1747900082157,5.61135738,178.21,178.18,0.14216157]
[1747900082838,5.61114716,178.22,178.2,14.11330617]
[1747900083159,24.40063004,178.23,178.22,0.14216157]
[1747900083335,24.40063004,178.23,178.22,14.11330617]
[1747900083535,30.01135775,178.23,178.22,14.11330617]
[1747900084971,24.40063004,178.23,178.22,14.11330617]
[1747900085773,5.60883953,178.29,178.22,14.11330617]
[1747900085974,5.60883953,178.29,178.27,13.9711446]
[1747900086877,14.0218035,178.3,178.27,13.9711446]
[1747900087087,5.60789591,178.32,178.29,13.9711446]
[1747900087648,5.60789591,178.32,178.31,0.14216157]
[1747900087982,5.60789591,178.32,178.31,14.11330617]
[1747900088758,5.60789591,178.32,178.31,0.14216157]
[1747900089062,5.60758145,178.33,178.31,0.14216157]
[1747900090282,5.60758145,178.33,178.31,13.9711446]
[1747900090455,5.60758145,178.33,178.32,14.11330617]
[1747900091276,14.01776017,178.35,178.32,14.11330617]
[1747900091482,14.01776017,178.35,178.34,13.9711446]
[1747900091679,14.01776017,178.35,178.34,14.11330617]
[1747900092063,14.01776017,178.35,178.34,0.14216157]
[1747900092494,14.01776017,178.35,178.34,14.11330617]
[1747900093190,47.64884439,178.39,178.35,0.14216157]
[1747900093487,61.61998899,178.39,178.35,0.14216157]
[1747900094489,61.61998899,178.39,178.28,0.14216157]
[1747900094680,61.61998899,178.39,178.34,0.14216157]
[1747900095285,87.61998899,178.39,178.34,0.14216157]
[1747900095581,13.9711446,178.38,178.34,0.14216157]
[1747900096095,13.9711446,178.35,178.29,13.9711446]
[1747900096378,13.9711446,178.35,178.28,0.14216157]
[1747900096379,13.9711446,178.32,178.28,0.14216157]
[1747900096581,5.60821042,178.31,178.29,0.14216157]
[1747900097583,19.62831282,178.32,178.25,0.14216157]
[1747900097757,33.59945742,178.32,178.28,0.14216157]
[1747900097957,33.59945742,178.32,178.24,0.14216157]
[1747900098287,33.59945742,178.32,178.28,0.14216157]
[1747900099587,33.59945742,178.32,178.27,13.9711446]
[1747900099588,13.9711446,178.31,178.27,0.14216157]
[1747900101671,5.60852495,178.3,178.27,0.14216157]
[1747900103463,5.60852495,178.3,178.28,0.14216157]
[1747900103984,5.60852495,178.3,178.28,14.11330617]
[1747900104187,5.60852495,178.3,178.29,14.11330617]
[1747900104371,5.60726701,178.34,178.29,14.11330617]
[1747900104572,5.60726701,178.34,178.33,0.14216157]
[1747900104795,5.60726701,178.34,178.33,14.11330617]
[1747900104971,19.62103374,178.38,178.33,14.11330617]
[1747900105180,19.62103374,178.38,178.27,12.25175271]
[1747900105181,5.60600964,178.38,178.37,14.11330617]
[1747900105504,19.61443621,178.44,178.38,0.14216157]
[1747900105661,19.61443621,178.44,178.42,0.14216157]
[1747900106399,19.61443621,178.44,178.43,0.14216157]
[1747900106578,19.61443621,178.44,178.43,14.11330617]
[1747900106780,5.60380476,178.46,178.43,14.11330617]
[1747900106986,5.60192706,178.51,178.47,0.14216157]
[1747900107285,5.60192706,178.51,178.5,0.14216157]
[1747900107874,5.60192706,178.51,178.44,26.14216157]
[1747900107875,19.60674471,178.51,178.44,26.14216157]
[1747900108082,19.60674471,178.51,178.49,0.14216157]
[1747900108474,5.60192706,178.51,178.49,14.11330617]
[1747900109101,19.60454825,178.53,178.49,14.11330617]
[1747900111200,19.60454825,178.53,178.51,0.14216157]
[1747900111569,14.00324875,178.53,178.51,0.14216157]
[1747900112499,14.00324875,178.53,178.5,0.14216157]
[1747900112795,14.00324875,178.53,178.52,0.14216157]
[1747900113092,14.00324875,178.53,178.51,0.14216157]
[1747900113291,5.60098577,178.54,178.53,0.14216157]
[1747900113685,14.00129084,178.56,178.53,0.14216157]
[1747900114568,14.00129084,178.56,178.51,13.9711446]
[1747900114784,14.00129084,178.56,178.52,0.14216157]
[1747900115498,27.97243544,178.56,178.52,0.14216157]
[1747900115997,13.9711446,178.54,178.5,0.14216157]
[1747900116478,19.60164926,178.56,178.51,13.9711446]
[1747900116682,33.57279386,178.56,178.52,0.14216157]
[1747900117095,33.57279386,178.56,178.47,0.14216157]
[1747900117312,33.57279386,178.56,178.51,13.9711446]
[1747900117482,33.57279386,178.56,178.52,0.14216157]
[1747900118590,33.57279386,178.56,178.52,0.11218219]
[1747900120588,19.60164926,178.56,178.52,0.11218219]
[1747900120984,33.57279386,178.56,178.52,0.11218219]
[1747900121477,19.60164926,178.56,178.53,0.14216157]
[1747900122003,33.57279386,178.56,178.52,0.14216157]
[1747900122384,47.59535868,178.59,178.52,14.11330617]
[1747900122591,13.9711446,178.57,178.52,14.11330617]
[1747900123279,13.9711446,178.58,178.54,0.14216157]
[1747900123787,47.59535868,178.59,178.57,13.9711446]
[1747900123788,19.59796181,178.59,178.57,13.9711446]
[1747900124193,19.59796181,178.59,178.56,0.14216157]
[1747900124194,19.59796181,178.59,178.56,14.11330617]
[1747900124506,13.99854415,178.59,178.56,14.11330617]
[1747900124894,27.96968875,178.59,178.52,0.14216157]
[1747900125094,13.9711446,178.58,178.54,0.14216157]
[1747900126199,13.9711446,178.57,178.53,0.14216157]
[1747900126388,13.9711446,178.56,178.53,0.14216157]
[1747900126582,5.60067208,178.55,178.53,0.14216157]
[1747900126783,19.60235228,178.55,178.52,0.14216157]
[1747900127397,19.60235228,178.55,178.52,14.11330617]
[1747900127587,19.60235228,178.55,178.52,0.14216157]
[1747900127793,13.9711446,178.54,178.52,0.14216157]
[1747900128089,33.57349688,178.55,178.5,0.14216157]
[1747900128411,13.9711446,178.52,178.5,0.14216157]
[1747900128616,19.60674471,178.51,178.48,0.14216157]
[1747900128785,13.9711446,178.5,178.48,0.14216157]
[1747900129186,33.57788931,178.51,178.47,0.14216157]
[1747900130181,13.9711446,178.5,178.46,0.14216157]
[1747900130588,29.76195276,178.56,178.48,0.14216157]
[1747900130589,14.00279181,178.54,178.48,0.14216157]
[1747900130818,13.9711446,178.53,178.49,0.14216157]
[1747900130998,13.9711446,178.52,178.49,0.14216157]
[1747900131412,13.9711446,178.52,178.47,0.14216157]
[1747900131734,13.9711446,178.5,178.47,0.14216157]
[1747900131888,13.9711446,178.49,178.47,0.14216157]
[1747900132089,13.9711446,178.5,178.45,0.14216157]
[1747900132592,5.60255476,178.49,178.45,0.14216157]
[1747900132792,19.60894167,178.49,178.43,0.14216157]
[1747900132991,19.60894167,178.49,178.45,0.14216157]
[1747900133416,33.58008627,178.49,178.45,0.14216157]
[1747900135525,13.9711446,178.46,178.38,0.14216157]
[1747900135687,13.9711446,178.46,178.37,1.713]
[1747900135688,13.9711446,178.45,178.4,0.14216157]
[1747900135892,13.9711446,178.45,178.4,14.11330617]
[1747900136304,13.9711446,178.45,178.4,0.14216157]
[1747900136606,13.9711446,178.43,178.4,0.14216157]
[1747900137012,13.9711446,178.43,178.39,0.14216157]
[1747900137815,5.60475283,178.42,178.39,0.14216157]
[1747900138713,33.5877795,178.42,178.38,0.14216157]
[1747900140019,19.6166349,178.42,178.38,14.11330617]
[1747900140723,33.5877795,178.42,178.38,0.14216157]
[1747900142222,33.5877795,178.42,178.35,39.64]
[1747900142399,13.9711446,178.41,178.37,0.14216157]
[1747900142722,13.9711446,178.4,178.37,0.14216157]
[1747900142921,13.9711446,178.39,178.37,0.14216157]
[1747900143125,13.9711446,178.39,178.34,0.14216157]
[1747900143417,13.9711446,178.4,178.34,14.11330617]
[1747900143617,13.9711446,178.4,178.35,0.14216157]
[1747900144119,13.9711446,178.39,178.35,0.14216157]
[1747900144329,5.60632393,178.37,178.34,0.14216157]
[1747900144535,5.60632393,178.37,178.34,14.11330617]
[1747900144906,13.9711446,178.36,178.33,0.14216157]
[1747900145626,13.9711446,178.35,178.31,0.14216157]
[1747900146425,75.61490875,178.42,178.31,0.14216157]
[1747900146426,28.01034691,178.51,178.34,14.11330617]
[1747900146629,13.9711446,178.44,178.4,0.14216157]
[1747900146930,13.9711446,178.45,178.4,0.14216157]
[1747900147441,14.00717167,178.48,178.43,13.9711446]
[1747900147602,13.9711446,178.48,178.43,13.9711446]
[1747900147798,13.9711446,178.48,178.42,14.11330617]
[1747900148107,13.9711446,178.48,178.44,0.14216157]
[1747900148527,13.9711446,178.49,178.44,0.14216157]
[1747900149241,19.60784313,178.5,178.47,0.14216157]
[1747900149242,5.60224089,178.5,178.47,0.14216157]
[1747900149542,5.6012995,178.53,178.49,14.11330617]
[1747900149840,5.6012995,178.53,178.51,0.14216157]
[1747900150512,19.5724441,178.53,178.5,0.14216157]
[1747900150714,13.9711446,178.52,178.5,0.14216157]
[1747900151431,13.9711446,178.52,178.48,0.14216157]
[1747900151637,21.94014728,178.52,178.48,0.14216157]
[1747900151826,41.54469553,178.53,178.48,0.14216157]
[1747900152327,21.94014728,178.52,178.48,0.14216157]
[1747900152633,5.60192706,178.51,178.48,0.14216157]
[1747900153837,21.94014728,178.49,178.41,8.2196]
[1747900154045,21.94014728,178.47,178.43,0.14216157]
[1747900154214,21.94014728,178.46,178.43,0.14216157]
[1747900154415,21.92014728,178.46,178.43,0.14216157]
[1747900154644,21.94014728,178.45,178.41,0.14216157]
[1747900155327,21.94014728,178.46,178.42,0.14216157]
[1747900155824,21.94014728,178.45,178.42,0.14216157]
[1747900156035,21.94014728,178.45,178.41,0.14216157]
[1747900156213,21.94014728,178.46,178.41,0.14216157]
[1747900156411,21.94014728,178.46,178.41,22.08230885]
[1747900157039,5.60381059,178.45,178.41,22.08230885]
[1747900158037,5.60381059,178.45,178.41,0.14216157]
[1747900158841,19.61333706,178.45,178.41,0.14216157]
[1747900159847,41.55348434,178.45,178.4,21.94014728]
[1747900160035,41.55348434,178.45,178.41,0.14216157]
[1747900160550,19.61333706,178.45,178.42,0.14216157]
[1747900161451,19.61333706,178.45,178.43,0.14216157]
[1747900162152,21.94014728,178.44,178.33,6.3412]
[1747900162354,47.63239001,178.45,178.32,1.8083]
[1747900162355,21.94014728,178.39,178.34,22.08230885]
[1747900162656,21.94014728,178.38,178.34,0.14216157]
[1747900162951,21.94014728,178.35,178.31,0.14216157]
[1747900163143,21.94014728,178.34,178.31,0.14216157]
[1747900163456,21.94014728,178.34,178.29,22.08230885]
[1747900164154,47.65642518,178.36,178.29,22.08230885]
[1747900164327,19.62323389,178.36,178.33,0.14216157]
[1747900164851,5.60600964,178.38,178.35,0.14216157]
[1747900165055,5.60600964,178.38,178.35,22.08230885]
[1747900166051,19.62103374,178.38,178.35,0.14216157]
[1747900167058,19.62103374,178.38,178.34,21.94014728]